bitfinex-derivatives/quotes_SOLF0:USTF0_20260220
["timestamp","ask_amount","ask_price","bid_price","bid_amount"]
[1771591236911,3.66032956,83.66,83.607,14.51895849]
[1771591236912,14.26209338,83.649,83.607,14.51895849]
[1771591244016,11.14336476,83.671,83.552,29.45071945]
[1771591244017,13.28142878,83.647,83.552,29.45071945]
[1771591244211,3.66032956,83.56,83.516,32.50280643]
[1771591244410,35.86,83.645,83.491,32.50280643]
[1771591244411,3.66032956,83.55,83.491,32.50280643]
[1771591245014,3.66032956,83.54,83.491,32.50280643]
[1771591245214,3.66032956,83.55,83.501,32.50327871]
[1771591247019,3.66032956,83.54,83.501,32.50327871]
[1771591247811,3.66032956,83.54,83.444,11.92773547]
[1771591247812,9.35590083,83.57,83.487,33.23133384]
[1771591248118,3.66032956,83.53,83.487,33.23133384]
[1771591250310,3.66032956,83.52,83.487,33.23133384]
[1771591251312,3.66032956,83.54,83.487,33.23133384]
[1771591251618,3.66032956,83.53,83.487,33.23133384]
[1771591253323,3.66032956,83.54,83.487,33.23133384]
[1771591256219,3.66032956,83.54,83.491,33.29155916]
[1771591260114,3.66032956,83.52,83.491,33.29155916]
[1771591260924,3.66032956,83.53,83.491,33.29155916]
[1771591262221,3.66032956,83.51,83.459,33.29429569]
[1771591262414,3.66032956,83.52,83.461,33.29429569]
[1771591262618,3.66032956,83.52,83.471,33.2955944]
[1771591263822,3.66032956,83.53,83.471,33.2955944]
[1771591264022,3.66032956,83.52,83.471,33.2955944]
[1771591265322,3.66032956,83.53,83.471,33.2955944]
[1771591266727,3.66032956,83.54,83.481,33.00113942]
[1771591267126,3.66032956,83.54,83.491,33.00203207]
[1771591271131,3.66032956,83.55,83.491,33.00203207]
[1771591272828,3.66032956,83.55,83.501,33.15348328]
[1771591273628,251.46594404,83.584,83.501,33.15348328]
[1771591273629,3.66032956,83.56,83.501,33.15348328]
[1771591273830,3.66032956,83.56,83.511,33.15528235]
[1771591275731,251.46594404,83.584,83.511,33.15528235]
[1771591275732,3.66032956,83.54,83.511,33.15528235]
[1771591280034,3.67133562,83.54,83.511,33.15528235]
[1771591281731,3.67133562,83.55,83.511,33.15528235]
[1771591281931,2.9927883,83.549,83.511,33.15528235]
[1771591282132,2.9927883,83.548,83.511,33.15528235]
[1771591282428,2.9927883,83.547,83.511,33.15528235]
[1771591282634,2.9927883,83.546,83.511,33.15528235]
[1771591282834,2.9927883,83.545,83.511,33.15528235]
[1771591283034,3.67133562,83.55,83.511,33.15528235]
[1771591283035,2.9927883,83.544,83.511,33.15528235]
[1771591283234,2.9927883,83.543,83.511,33.15528235]
[1771591283436,2.9927883,83.542,83.511,33.15528235]
[1771591283730,2.9927883,83.541,83.511,33.15528235]
[1771591284032,2.9927883,83.54,83.511,33.15528235]
[1771591284233,2.9927883,83.539,83.511,33.15528235]
[1771591284427,2.9927883,83.538,83.511,33.15528235]
[1771591284628,2.9927883,83.537,83.511,33.15528235]
[1771591284828,10.7768,83.551,83.511,33.15528235]
[1771591284829,2.9927883,83.536,83.511,33.15528235]
[1771591285039,2.9927883,83.535,83.511,33.15528235]
[1771591285335,2.99281704,83.534,83.511,33.15528235]
[1771591285529,10.7768,83.551,83.511,33.15528235]
[1771591285530,2.99281704,83.533,83.511,33.15528235]
[1771591285738,2.99281704,83.532,83.511,33.15528235]
[1771591285934,2.99281704,83.531,83.511,33.15528235]
[1771591286128,10.7768,83.551,83.511,33.15528235]
[1771591286334,10.7769,83.549,83.511,33.15528235]
[1771591286534,12.34146513,83.548,83.511,33.15528235]
[1771591286729,3.67133562,83.56,83.511,33.15528235]
[1771591286730,2.99281701,83.547,83.511,33.15528235]
[1771591286925,2.99281701,83.546,83.511,33.15528235]
[1771591287134,12.35876387,83.545,83.511,33.15528235]
[1771591287332,12.35876387,83.544,83.511,33.15528235]
[1771591287534,12.35876387,83.543,83.511,33.15528235]
[1771591287737,12.35876387,83.542,83.511,33.15528235]
[1771591287931,12.35876387,83.541,83.511,33.15528235]
[1771591288126,12.39010898,83.54,83.511,33.15528235]
[1771591288335,12.39010898,83.539,83.511,33.15528235]
[1771591288535,12.39010898,83.538,83.511,33.15528235]
[1771591288738,12.39010898,83.537,83.511,33.15528235]
[1771591289037,10.7772,83.547,83.511,33.15528235]
[1771591289038,12.39010898,83.536,83.511,33.15528235]
[1771591289235,12.39010898,83.535,83.511,33.15528235]
[1771591289436,10.7772,83.547,83.511,33.15528235]
[1771591289437,12.39010898,83.534,83.511,33.15528235]
[1771591289634,12.39010898,83.533,83.511,33.15528235]
[1771591289835,12.39010898,83.532,83.511,33.15528235]
[1771591290030,12.39010898,83.531,83.511,33.15528235]
[1771591290230,12.39010898,83.53,83.511,33.15528235]
[1771591290437,2.99281701,83.529,83.511,33.15528235]
[1771591290735,2.99281701,83.528,83.511,33.15528235]
[1771591290938,2.99281701,83.527,83.511,33.15528235]
[1771591291230,2.99281701,83.526,83.511,33.15528235]
[1771591291438,10.7772,83.547,83.511,33.15528235]
[1771591291642,9.39860958,83.546,83.511,33.15528235]
[1771591291937,9.39860958,83.545,83.511,33.15528235]
[1771591292239,9.39860958,83.544,83.511,33.15528235]
[1771591292433,9.39860958,83.543,83.511,33.15528235]
[1771591292633,9.39860958,83.542,83.511,33.15528235]
[1771591292834,9.39860958,83.541,83.511,33.15528235]
[1771591293040,9.39860958,83.54,83.511,33.15528235]
[1771591293239,9.39860958,83.539,83.511,33.15528235]
[1771591293539,9.39860958,83.539,83.458,2.08344559]
[1771591293540,11.0249341,83.524,83.481,31.80239787]
[1771591293742,9.39448808,83.523,83.481,31.80239787]
[1771591294041,3.67133562,83.52,83.481,31.80239787]
[1771591294241,9.39448808,83.519,83.481,31.80239787]
[1771591294438,9.39448808,83.518,83.481,31.80239787]
[1771591294739,9.39448808,83.517,83.481,31.80239787]
[1771591295040,9.39448808,83.516,83.481,31.80239787]
[1771591295342,9.39448808,83.515,83.481,31.80239787]
[1771591295542,9.39448808,83.514,83.481,31.80239787]
[1771591295736,3.67133562,83.52,83.481,31.80239787]
[1771591295938,9.38731225,83.519,83.481,31.80239787]
[1771591296138,9.38731225,83.518,83.481,31.80239787]
[1771591296340,9.38731225,83.517,83.481,31.80239787]
[1771591296540,9.38731225,83.516,83.481,31.80239787]
[1771591296741,9.38731225,83.515,83.481,31.80239787]
[1771591296942,9.38731225,83.514,83.481,31.80239787]
[1771591297236,9.38731225,83.513,83.481,31.80239787]
[1771591297435,3.67133562,83.49,83.386,31.75864247]
[1771591297635,21.5609,83.523,83.421,31.801883]
[1771591297636,3.67133562,83.48,83.421,31.801883]
[1771591297837,9.38731225,83.479,83.421,31.801883]
[1771591298038,9.38731225,83.478,83.431,31.801883]
[1771591298242,9.38731225,83.477,83.431,31.801883]
[1771591298436,3.67133562,83.47,83.42,3.67133562]
[1771591298632,3.67133562,83.48,83.431,31.801883]
[1771591299143,3.67133562,83.44,83.417,31.80276365]
[1771591299438,9.36088793,83.478,83.388,33.887907]
[1771591299636,3.67133562,83.46,83.411,32.18319572]
[1771591299836,3.67133562,83.47,83.411,32.18319572]
[1771591300143,3.67133562,83.48,83.421,32.18319572]
[1771591300738,3.67133562,83.48,83.431,32.18433462]
[1771591300945,3.67133562,83.49,83.438,32.18433462]
[1771591301140,3.67133562,83.5,83.441,32.18433462]
[1771591301341,3.67133562,83.49,83.441,32.18433462]
[1771591302045,3.67133562,83.47,83.441,32.18433462]
[1771591303443,3.67133562,83.48,83.441,32.18433462]
[1771591309948,2.9955555,83.496,83.454,31.17116146]
[1771591310152,3.67133562,83.49,83.454,31.17116146]
[1771591310353,3.67133562,83.48,83.454,31.17116146]
[1771591311251,3.67133562,83.48,83.431,31.17148714]
[1771591312846,3.67133562,83.48,83.421,10.7934]
[1771591313053,11.16760766,83.528,83.4,62.0]
[1771591313054,11.16760766,83.467,83.401,30.77704652]
[1771591313253,2.9955555,83.486,83.431,30.77704652]
[1771591313555,3.67133562,83.48,83.431,30.77704652]
[1771591313748,167.6732,83.534,83.431,30.77704652]
[1771591313749,3.67133562,83.47,83.431,30.77704652]
[1771591315255,10.7859,83.48,83.431,30.77704652]
[1771591315454,3.67133562,83.47,83.431,30.77704652]
[1771591315654,14.45843562,83.47,83.431,30.77704652]
[1771591317357,3.67133562,83.48,83.431,30.77704652]
[1771591317662,10.7841,83.494,83.386,2.08538701]
[1771591317663,3.67133562,83.51,83.451,31.49203589]
[1771591318661,12.32743676,83.552,83.451,31.49203589]
[1771591318662,3.67133562,83.5,83.451,31.49203589]
[1771591318956,3.67133562,83.5,83.395,35.86]
[1771591318957,3.67133562,83.46,83.414,31.49252808]
[1771591319158,3.67133562,83.45,83.414,31.49252808]
[1771591320063,3.67133562,83.44,83.414,31.49252808]
[1771591320358,12.32743676,83.51,83.414,31.49252808]
[1771591320563,3.67133562,83.47,83.414,31.49252808]
[1771591321871,3.67133562,83.47,83.415,30.92971483]
[1771591322869,3.67133562,83.47,83.417,30.929857]
[1771591323371,3.67133562,83.46,83.417,30.929857]
[1771591323765,3.67133562,83.46,83.419,31.16020093]
[1771591324571,3.67133562,83.47,83.419,31.16020093]
[1771591325772,3.67133562,83.46,83.419,31.16020093]
[1771591327274,14.66558526,83.55,83.419,31.16020093]
[1771591327275,3.67133562,83.45,83.419,31.16020093]
[1771591327575,3.67133562,83.46,83.419,31.16020093]
[1771591330376,3.67133562,83.47,83.421,31.38268274]
[1771591331673,3.67133562,83.47,83.423,31.38795202]
[1771591331876,10.7857,83.482,83.423,31.38795202]
[1771591331877,3.67133562,83.46,83.423,31.38795202]
[1771591332381,3.67133562,83.48,83.425,31.38795202]
[1771591333081,3.67133562,83.48,83.434,10.7917]
[1771591333278,10.7851,83.486,83.435,31.3883014]
[1771591333279,3.67133562,83.47,83.435,31.3883014]
[1771591338279,3.67133562,83.48,83.435,31.3883014]
[1771591338480,3.67133562,83.49,83.441,31.5155368]
[1771591338680,2.99487416,83.489,83.441,31.5155368]
[1771591338876,3.67133562,83.5,83.443,31.51575891]
[1771591339078,12.35766877,83.499,83.443,31.51575891]
[1771591339275,12.35766877,83.498,83.443,31.51575891]
[1771591339583,12.35766877,83.497,83.443,31.51575891]
[1771591339775,12.35766877,83.496,83.443,31.51575891]
[1771591339975,12.35766877,83.495,83.443,31.51575891]
[1771591340176,2.99487202,83.494,83.443,31.51575891]
[1771591340378,12.36941558,83.493,83.443,31.51575891]
[1771591340684,12.36941558,83.492,83.448,31.53628671]
[1771591340985,2.99487202,83.491,83.451,31.53628671]
[1771591341177,2.99487202,83.49,83.451,31.53628671]
[1771591341373,2.99487202,83.489,83.451,31.53628671]
[1771591341574,2.99487202,83.488,83.451,31.53628671]
[1771591341778,2.99487202,83.487,83.451,31.53628671]
[1771591342085,3.67370757,83.51,83.451,31.53628671]
[1771591342287,12.37524341,83.509,83.451,31.53628671]
[1771591342485,12.37524341,83.508,83.451,31.53628671]
[1771591342682,12.37524341,83.507,83.454,31.60315268]
[1771591342879,14.45570757,83.51,83.461,31.60315268]
[1771591342880,12.37524341,83.506,83.461,31.60315268]
[1771591343076,12.37524341,83.505,83.461,31.60315268]
[1771591343284,12.37524341,83.504,83.461,31.60315268]
[1771591343482,12.37524341,83.503,83.461,31.60315268]
[1771591343681,12.37524341,83.502,83.461,31.60315268]
[1771591343887,12.37524341,83.501,83.461,31.60315268]
[1771591344086,12.37524341,83.5,83.461,31.60315268]
[1771591344284,12.37524341,83.499,83.461,31.60315268]
[1771591344583,2.99481589,83.498,83.461,31.60315268]
[1771591344785,2.99481589,83.497,83.461,31.60315268]
[1771591344991,2.99481589,83.496,83.461,31.60315268]
[1771591345183,14.45570757,83.51,83.461,31.60315268]
[1771591345383,12.38187972,83.509,83.461,31.60315268]
[1771591345583,12.38187972,83.508,83.461,31.60315268]
[1771591345887,12.38187972,83.507,83.461,31.60315268]
[1771591346079,3.67370757,83.5,83.461,31.60315268]
[1771591346282,2.9945214,83.499,83.461,31.60315268]
[1771591346487,3.67370757,83.5,83.461,31.60315268]
[1771591346488,2.9945214,83.498,83.461,31.60315268]
[1771591346688,3.67370757,83.5,83.461,31.60315268]
[1771591346887,2.99452189,83.499,83.461,31.60315268]
[1771591347089,2.99452189,83.498,83.461,31.60315268]
[1771591347289,12.37991141,83.497,83.461,31.60315268]
[1771591347492,2.99452189,83.496,83.461,31.60315268]
[1771591347690,3.67370757,83.5,83.461,31.60315268]
[1771591347889,2.99464677,83.499,83.461,31.60315268]
[1771591348190,3.67370757,83.5,83.461,31.60315268]
[1771591348191,12.38004451,83.498,83.461,31.60315268]
[1771591348384,3.67370757,83.48,83.461,31.60315268]
[1771591351886,3.67370757,83.49,83.461,31.60315268]
[1771591352088,3.67370757,83.51,83.461,31.60315268]
[1771591352392,3.67370757,83.53,83.471,31.49691809]
[1771591352588,12.37206169,83.529,83.471,31.49691809]
[1771591352791,2.99381342,83.528,83.471,31.49691809]
[1771591353084,2.99381342,83.527,83.471,31.49691809]
[1771591353282,3.67370757,83.52,83.471,31.49691809]
[1771591353690,3.67370757,83.52,83.471,42.28391809]
[1771591353892,3.67370757,83.52,83.472,31.67988159]
[1771591354290,10.7805,83.522,83.472,31.67988159]
[1771591354491,23.63372576,83.566,83.491,31.67988159]
[1771591354492,10.779,83.534,83.491,31.67988159]
[1771591354796,3.67370757,83.54,83.491,31.67988159]
[1771591355786,3.67370757,83.54,83.493,31.47634789]
[1771591356192,11.16760766,83.577,83.451,35.86]
[1771591356193,3.67370757,83.55,83.501,31.47634789]
[1771591357289,3.67370757,83.55,83.49,3.67370757]
[1771591357290,3.67370757,83.55,83.503,31.47651921]
[1771591357792,3.67370757,83.55,83.442,167.8549]
[1771591357793,3.67370757,83.56,83.511,31.47429982]
[1771591357991,3.67370757,83.56,83.528,31.47429982]
[1771591358398,3.67370757,83.57,83.528,31.47429982]
[1771591358898,3.67370757,83.57,83.53,31.47447186]
[1771591360598,3.67370757,83.58,83.53,31.47447186]
[1771591361295,3.67370757,83.58,83.531,31.3949993]
[1771591364197,31.52830822,83.595,83.531,31.3949993]
[1771591364198,3.67370757,83.57,83.531,31.3949993]
[1771591364399,3.67370757,83.56,83.531,31.3949993]
[1771591365401,3.67370757,83.57,83.531,31.3949993]
[1771591370304,3.67370757,83.57,83.533,31.08670919]
[1771591370708,3.67370757,83.58,83.533,31.08670919]
[1771591371801,3.67370757,83.58,83.544,41.87346461]
[1771591372307,3.67370757,83.57,83.544,41.87346461]
[1771591374307,3.67370757,83.57,83.55,10.7767]
[1771591374501,3.67370757,83.58,83.55,10.7767]
[1771591374701,3.67370757,83.57,83.55,10.7767]
[1771591375203,9.20692059,83.629,83.561,10.7753]
[1771591375204,3.67370757,83.59,83.561,10.7753]
[1771591375506,3.67370757,83.59,83.562,31.11505012]
[1771591375702,3.67370757,83.59,83.573,10.7738]
[1771591377109,3.67370757,83.62,83.587,10.772]
[1771591377309,3.67370757,83.6,83.587,10.772]
[1771591377606,3.67370757,83.61,83.587,10.772]
[1771591378311,3.67370757,83.62,83.594,10.7711]
[1771591378605,3.67370757,83.63,83.588,31.08072454]
[1771591380306,3.67370757,83.62,83.588,31.08072454]
[1771591381510,31.48453082,83.68,83.588,31.08072454]
[1771591381511,3.67370757,83.61,83.588,31.08072454]
[1771591381811,3.67370757,83.61,83.51,35.92]
[1771591381812,3.67370757,83.6,83.573,31.2538582]
[1771591382412,3.67370757,83.59,83.573,31.2538582]
[1771591382714,3.67370757,83.6,83.573,31.2538582]
[1771591383107,12.01436233,83.665,83.541,29.41714367]
[1771591383108,3.67370757,83.59,83.541,29.41714367]
[1771591384308,3.67370757,83.59,83.546,10.7772]
[1771591384511,3.67370757,83.59,83.547,29.12787036]
[1771591385310,3.67370757,83.59,83.549,29.12824002]
[1771591388405,3.67370757,83.59,83.552,29.1135592]
[1771591389313,3.67370757,83.6,83.552,29.1135592]
[1771591390315,3.67370757,83.59,83.552,29.1135592]
[1771591391719,3.67370757,83.59,83.54,3.67370757]
[1771591391720,3.67370757,83.59,83.554,29.08705492]
[1771591392523,3.67370757,83.59,83.557,29.08705492]
[1771591393626,3.67370757,83.59,83.559,10.7756]
[1771591393932,3.67370757,83.59,83.56,28.99982162]
[1771591394126,3.67370757,83.6,83.56,28.99982162]
[1771591394325,3.67370757,83.6,83.562,28.99982162]
[1771591395232,3.67370757,83.59,83.562,28.99982162]
[1771591395432,3.67370757,83.6,83.562,28.99982162]
[1771591396733,3.67370757,83.6,83.565,29.03698489]
[1771591398434,2.99075751,83.599,83.567,10.7745]
[1771591398733,2.99075751,83.598,83.567,10.7745]
[1771591399030,3.67370757,83.6,83.567,10.7745]
[1771591399231,2.99075726,83.599,83.567,10.7745]
[1771591399430,2.99075726,83.598,83.567,10.7745]
[1771591399620,3.67370757,83.6,83.567,10.7745]
[1771591399621,2.99075726,83.597,83.567,10.7745]
[1771591399820,3.67370757,83.6,83.567,10.7745]
[1771591399821,2.99075726,83.596,83.567,10.7745]
[1771591400024,3.67370757,83.6,83.567,10.7745]
[1771591400231,2.99075726,83.599,83.567,10.7745]
[1771591400433,3.67370757,83.6,83.567,10.7745]
[1771591400434,2.99075726,83.598,83.567,10.7745]
[1771591400636,2.99075726,83.597,83.567,10.7745]
[1771591400935,2.99075726,83.596,83.567,10.7745]
[1771591401134,2.99075726,83.595,83.567,10.7745]
[1771591401334,3.67370757,83.6,83.565,29.03698489]
[1771591401335,2.99075726,83.594,83.565,29.03698489]
[1771591401534,3.67370757,83.6,83.565,29.03698489]
[1771591401535,2.99075726,83.593,83.565,29.03698489]
[1771591401828,2.99075726,83.592,83.565,29.03698489]
[1771591402034,3.66561132,83.6,83.565,29.03698489]
[1771591402329,2.99075699,83.599,83.565,29.03698489]
[1771591402533,2.99075699,83.598,83.565,29.03698489]
[1771591402734,2.99075699,83.597,83.565,29.03698489]
[1771591402935,2.99075699,83.596,83.565,29.03698489]
[1771591403124,2.99075699,83.595,83.565,29.03698489]
[1771591403330,2.99075699,83.594,83.565,29.03698489]
[1771591403529,2.99075699,83.593,83.565,29.03698489]
[1771591403735,2.99075699,83.592,83.565,29.03698489]
[1771591403932,2.99075699,83.591,83.565,29.03698489]
[1771591404125,3.66561132,83.6,83.565,29.03698489]
[1771591404328,2.99075552,83.599,83.565,29.03698489]
[1771591404533,2.99075552,83.598,83.565,29.03698489]
[1771591404831,2.99075552,83.597,83.565,29.03698489]
[1771591405031,2.99075552,83.596,83.565,29.03698489]
[1771591405231,2.99075552,83.595,83.565,29.03698489]
[1771591405432,2.99075552,83.594,83.565,29.03698489]
[1771591405633,2.99075552,83.593,83.565,29.03698489]
[1771591405927,2.99075552,83.592,83.565,29.03698489]
[1771591406125,3.66561132,83.6,83.565,29.03698489]
[1771591406126,2.99075552,83.591,83.565,29.03698489]
[1771591406338,3.66561132,83.6,83.565,29.03698489]
[1771591406538,2.99075552,83.599,83.565,29.03698489]
[1771591406738,2.99075552,83.598,83.565,29.03698489]
[1771591406933,2.99075552,83.597,83.565,29.03698489]
[1771591407238,2.99075552,83.596,83.565,29.03698489]
[1771591407437,2.99075552,83.595,83.565,29.03698489]
[1771591407628,2.99075552,83.594,83.565,29.03698489]
[1771591407832,2.99075552,83.593,83.565,29.03698489]
[1771591408032,2.99075552,83.592,83.565,29.03698489]
[1771591408340,2.99075552,83.591,83.565,29.03698489]
[1771591408538,2.99075552,83.59,83.565,29.03698489]
[1771591408736,2.99075552,83.589,83.565,29.03698489]
[1771591408936,2.99075552,83.588,83.565,29.03698489]
[1771591409137,2.99075552,83.587,83.565,29.03698489]
[1771591409438,2.99075552,83.586,83.565,29.03698489]
[1771591409639,3.66561132,83.6,83.565,29.03698489]
[1771591409840,12.29679477,83.599,83.565,29.03698489]
[1771591410040,3.66561132,83.6,83.565,29.03698489]
[1771591410041,12.29679477,83.598,83.565,29.03698489]
[1771591410334,3.66561132,83.6,83.565,29.03698489]
[1771591410335,12.29679477,83.597,83.565,29.03698489]
[1771591410533,12.29679477,83.596,83.565,29.03698489]
[1771591410729,2.99100186,83.595,83.565,29.03698489]
[1771591410937,2.99100186,83.594,83.554,29.14354763]
[1771591411241,3.66561132,83.58,83.542,29.14354763]
[1771591411436,2.99100186,83.579,83.542,29.14354763]
[1771591411636,2.99100186,83.578,83.542,29.14354763]
[1771591411836,2.99100186,83.577,83.542,29.14354763]
[1771591412040,2.99100186,83.576,83.542,29.14354763]
[1771591412240,2.99100186,83.575,83.542,29.14354763]
[1771591412437,3.66561132,83.57,83.542,29.14354763]
[1771591412740,2.9917269,83.569,83.542,29.14354763]
[1771591412937,2.9917269,83.568,83.542,29.14354763]
[1771591413137,2.9917269,83.567,83.542,29.14354763]
[1771591413338,2.9917269,83.566,83.542,29.14354763]
[1771591413539,3.66561132,83.57,83.542,29.14354763]
[1771591413738,2.99177524,83.569,83.542,29.14354763]
[1771591413938,2.99177524,83.568,83.542,29.14354763]
[1771591414142,2.99177524,83.567,83.542,29.14354763]
[1771591414337,3.66561132,83.58,83.542,29.14354763]
[1771591414540,12.30201696,83.579,83.542,29.14354763]
[1771591414845,12.30201696,83.578,83.542,29.14354763]
[1771591415046,12.30201696,83.577,83.542,29.14354763]
[1771591415345,12.30201696,83.576,83.542,29.14354763]
[1771591415537,2.99177373,83.575,83.542,29.14354763]
[1771591415739,2.99177373,83.574,83.542,29.14354763]
[1771591416044,3.66561132,83.58,83.542,29.14354763]
[1771591416045,2.99177373,83.573,83.542,29.14354763]
[1771591416241,2.99177373,83.572,83.542,29.14354763]
[1771591416541,3.66561132,83.58,83.542,29.14354763]
[1771591416542,2.99177373,83.571,83.542,29.14354763]
[1771591416737,10.7718,83.589,83.542,29.14354763]
[1771591416738,6.65738505,83.57,83.542,29.14354763]
[1771591416938,2.99177373,83.569,83.542,29.14354763]
[1771591417141,3.66561132,83.57,83.542,29.14354763]
[1771591417641,2.99177259,83.569,83.542,29.14354763]
[1771591417843,2.99177259,83.568,83.542,29.14354763]
[1771591418036,3.66561132,83.57,83.542,29.14354763]
[1771591418237,2.99177259,83.569,83.542,29.14354763]
[1771591418434,2.99177259,83.568,83.542,29.14354763]
[1771591418640,3.66561132,83.57,83.542,29.14354763]
[1771591418838,2.99177259,83.569,83.542,29.14354763]
[1771591419034,3.66561132,83.57,83.542,29.14354763]
[1771591419236,2.99177259,83.569,83.542,29.14354763]
[1771591419445,3.66561132,83.57,83.542,29.14354763]
[1771591419644,2.99177224,83.569,83.542,29.14354763]
[1771591419845,3.66561132,83.57,83.542,29.14354763]
[1771591420040,2.99177224,83.569,83.542,29.14354763]
[1771591420246,3.66561132,83.57,83.542,29.14354763]
[1771591420447,2.99177224,83.569,83.542,29.14354763]
[1771591420751,14.66558526,83.615,83.542,29.14354763]
[1771591420752,3.66561132,83.59,83.542,29.14354763]
[1771591420950,12.29007645,83.589,83.542,29.14354763]
[1771591421150,12.29007645,83.588,83.542,29.14354763]
[1771591421351,2.99141572,83.587,83.542,29.14354763]
[1771591421545,2.99141572,83.586,83.542,29.14354763]
[1771591421746,2.99141572,83.585,83.544,29.00824876]
[1771591422046,2.99141572,83.584,83.544,29.00824876]
[1771591422247,2.99141572,83.583,83.544,29.00824876]
[1771591422451,3.66561132,83.58,83.544,29.00824876]
[1771591422748,2.99141572,83.579,83.544,29.00824876]
[1771591422951,2.99141572,83.579,83.53,3.66561132]
[1771591422952,2.99141572,83.578,83.546,29.00827221]
[1771591423147,3.66561132,83.59,83.546,29.00827221]
[1771591423348,2.99130981,83.589,83.546,29.00827221]
[1771591423549,2.99130981,83.588,83.546,29.00827221]
[1771591423750,2.99130981,83.587,83.546,29.00827221]
[1771591423949,3.66561132,83.59,83.546,29.00827221]
[1771591424150,2.99106208,83.589,83.546,29.00827221]
[1771591424350,2.99106208,83.588,83.546,29.00827221]
[1771591424550,2.99106208,83.587,83.546,29.00827221]
[1771591424751,2.99106208,83.586,83.555,29.16617238]
[1771591424953,3.66561132,83.59,83.555,29.16617238]
[1771591425155,2.99106207,83.589,83.555,29.16617238]
[1771591425349,2.99106207,83.588,83.555,29.16617238]
[1771591425553,2.99106207,83.587,83.555,29.16617238]
[1771591425752,2.99106207,83.586,83.555,29.16617238]
[1771591425956,3.66561132,83.59,83.555,29.16617238]
[1771591426254,2.99106207,83.589,83.555,29.16617238]
[1771591426452,2.99106207,83.588,83.555,29.16617238]
[1771591426655,2.99106207,83.588,83.554,10.7762]
[1771591426656,2.99106207,83.587,83.557,29.27244692]
[1771591426851,2.99106207,83.586,83.557,29.27244692]
[1771591427047,2.99106207,83.585,83.557,29.27244692]
[1771591427253,3.66561132,83.59,83.557,29.27244692]
[1771591427455,2.9910613,83.589,83.559,29.27244692]
[1771591427757,2.9910613,83.588,83.559,29.27244692]
[1771591427953,2.9910613,83.587,83.559,29.27244692]
[1771591428258,2.9910613,83.586,83.559,29.27244692]
[1771591428455,2.9910613,83.585,83.559,29.27244692]
[1771591428656,2.9910613,83.584,83.559,29.27244692]
[1771591428958,3.66561132,83.59,83.559,29.27244692]
[1771591429159,2.99106223,83.589,83.559,29.27244692]
[1771591429358,2.99106223,83.588,83.559,29.27244692]
[1771591429557,2.99106223,83.587,83.559,29.27244692]
[1771591429758,2.99106223,83.586,83.559,29.27244692]
[1771591429959,2.99106223,83.585,83.559,29.27244692]
[1771591430255,2.99106223,83.584,83.559,29.27244692]
[1771591430456,2.99106223,83.583,83.559,29.27244692]
[1771591430659,2.99106223,83.582,83.559,29.27244692]
[1771591430847,2.99106223,83.581,83.559,29.27244692]
[1771591431053,2.99106223,83.58,83.559,29.27244692]
[1771591431349,2.99106223,83.579,83.559,29.27244692]
[1771591431553,2.99106223,83.578,83.559,29.27244692]
[1771591431748,2.99106223,83.577,83.559,29.27244692]
[1771591431953,2.99136918,83.576,83.559,29.27244692]
[1771591432158,3.66561132,83.59,83.559,29.27244692]
[1771591432360,12.30567132,83.589,83.559,29.27244692]
[1771591432553,12.30567132,83.588,83.559,29.27244692]
[1771591432754,12.30567132,83.587,83.559,29.27244692]
[1771591433058,3.66561132,83.59,83.559,29.27244692]
[1771591433059,12.30567132,83.586,83.559,29.27244692]
[1771591433252,2.99136918,83.585,83.559,29.27244692]
[1771591433456,2.99136918,83.584,83.559,29.27244692]
[1771591433758,2.99136918,83.583,83.559,29.27244692]
[1771591433956,2.99136918,83.582,83.559,29.27244692]
[1771591434162,2.99136918,83.581,83.559,29.27244692]
[1771591434360,2.99136918,83.58,83.559,29.27244692]
[1771591434559,2.99136918,83.579,83.559,29.27244692]
[1771591434761,2.99136918,83.578,83.559,29.27244692]
[1771591434958,2.99136918,83.577,83.559,29.27244692]
[1771591435255,2.99136918,83.576,83.559,29.27244692]
[1771591435458,3.66561132,83.59,83.559,29.27244692]
[1771591435659,12.3077669,83.589,83.559,29.27244692]
[1771591435859,12.3077669,83.588,83.559,29.27244692]
[1771591436058,12.3077669,83.587,83.559,29.27244692]
[1771591436255,3.66561132,83.58,83.54,29.39829171]
[1771591436460,3.66561132,83.57,83.54,29.39829171]
[1771591436765,3.66561132,83.56,83.51,3.66561132]
[1771591437061,2.99136649,83.559,83.471,21.574]
[1771591437262,2.99136649,83.558,83.51,3.66561132]
[1771591437465,3.66561132,83.57,83.51,3.66561132]
[1771591437659,12.31116659,83.569,83.51,3.66561132]
[1771591437856,3.66561132,83.56,83.51,3.66561132]
[1771591438058,2.992069,83.559,83.522,10.7804]
[1771591438263,3.66561132,83.56,83.522,10.7804]
[1771591438763,3.66561132,83.56,83.523,25.38154552]
[1771591438963,2.99207144,83.559,83.523,25.38154552]
[1771591439162,2.99207144,83.558,83.523,25.38154552]
[1771591439364,3.66561132,83.56,83.523,25.38154552]
[1771591439663,2.9920712,83.559,83.523,25.38154552]
[1771591439866,3.66561132,83.56,83.523,25.38154552]